bitfinex-derivatives/quotes_SOLF0:USTF0_20260315
["timestamp","ask_amount","ask_price","bid_price","bid_amount"]
[1773581752021,19.13366113,87.748,87.663,27.80069065]
[1773581752220,19.13366113,87.747,87.663,27.80069065]
[1773581752421,8.64840304,87.746,87.663,27.80069065]
[1773581753119,8.64840304,87.748,87.663,27.80069065]
[1773581753321,46.36525809,87.749,87.663,27.80069065]
[1773581753322,8.64840304,87.747,87.663,27.80069065]
[1773581753514,10.258,87.714,87.663,27.80069065]
[1773581753712,35.88,87.713,87.663,27.80069065]
[1773581753912,35.88,87.712,87.663,27.80069065]
[1773581754115,8.64840304,87.745,87.664,27.79268932]
[1773581754316,35.88,87.73,87.664,27.79268932]
[1773581754515,35.88,87.745,87.664,27.79268932]
[1773581754717,35.88,87.744,87.691,9.85268932]
[1773581755021,35.88,87.746,87.691,9.85268932]
[1773581755222,35.88,87.747,87.691,9.85268932]
[1773581755622,35.88,87.747,87.696,9.85267652]
[1773581756223,35.88,87.747,87.698,9.84351327]
[1773581756618,10.254,87.746,87.698,9.84351327]
[1773581759524,35.88,87.747,87.701,9.85091117]
[1773581759823,35.88,87.758,87.701,9.85091117]
[1773581760027,3.11762741,87.75,87.701,9.85091117]
[1773581764127,3.11762741,87.75,87.702,10.259]
[1773581764324,35.88,87.758,87.711,9.85077419]
[1773581764525,35.88,87.758,87.721,9.85077419]
[1773581765825,35.88,87.758,87.72,3.11762741]
[1773581765826,35.88,87.758,87.701,9.85056984]
[1773581766025,3.11762741,87.75,87.701,9.85056984]
[1773581767631,10.254,87.746,87.701,9.85056984]
[1773581768224,3.11762741,87.73,87.681,9.82794537]
[1773581769031,10.255,87.738,87.681,9.82794537]
[1773581771025,13.37362741,87.73,87.681,9.82794537]
[1773581771428,3.11762741,87.74,87.681,9.82794537]
[1773581772029,10.256,87.73,87.684,9.86969347]
[1773581773126,8.66117578,87.757,87.684,9.86969347]
[1773581773332,10.255,87.738,87.684,9.86969347]
[1773581775737,10.256,87.728,87.684,9.86969347]
[1773581776031,3.11762741,87.72,87.684,9.86969347]
[1773581776636,3.11762741,87.7,87.661,9.8639561]
[1773581776937,3.12099061,87.7,87.661,9.8639561]
[1773581778532,3.12099061,87.69,87.643,9.84553587]
[1773581778838,3.12099061,87.68,87.643,9.84553587]
[1773581779635,10.259,87.698,87.643,9.84553587]
[1773581779934,3.12099061,87.69,87.643,9.84553587]
[1773581781041,3.12099061,87.68,87.643,9.84553587]
[1773581781834,10.26,87.689,87.643,9.84553587]
[1773581784537,3.12099061,87.69,87.643,9.84553587]
[1773581788442,3.12099061,87.69,87.645,9.8895337]
[1773581795349,3.12099061,87.7,87.649,9.89815329]
[1773581795853,10.259,87.699,87.649,9.89815329]
[1773581796446,10.26,87.692,87.649,9.89815329]
[1773581796648,3.12099061,87.69,87.649,9.89815329]
[1773581798153,3.12099061,87.72,87.661,9.89610288]
[1773581799550,10.258,87.712,87.664,9.89558284]
[1773581802454,10.257,87.72,87.671,9.89797982]
[1773581803648,10.256,87.728,87.681,9.8978147]
[1773581805053,10.257,87.721,87.681,9.8978147]
[1773581805353,3.12099061,87.72,87.681,9.8978147]
[1773581806552,10.257,87.719,87.681,9.8978147]
[1773581808455,3.12099061,87.72,87.681,9.8978147]
[1773581809953,13.37799061,87.72,87.681,9.8978147]
[1773581810457,3.12099061,87.71,87.661,9.91790014]
[1773581810855,3.12099061,87.71,87.663,9.91790014]
[1773581811056,3.12099061,87.72,87.663,9.91790014]
[1773581811946,10.258,87.708,87.663,9.91790014]
[1773581812348,3.12099061,87.69,87.663,9.91790014]
[1773581812752,3.12099061,87.68,87.634,9.91400875]
[1773581813253,3.12099061,87.68,87.635,10.267]
[1773581813454,3.12099061,87.68,87.636,9.91335908]
[1773581814558,3.12099061,87.68,87.64,9.91991999]
[1773581814754,10.261,87.688,87.64,9.91991999]
[1773581816961,3.12099061,87.69,87.658,8.36265017]
[1773581817358,3.12099061,87.7,87.658,8.36265017]
[1773581817554,3.12099061,87.69,87.658,8.36265017]
[1773581818763,8.66165723,87.728,87.658,8.36265017]
[1773581818963,3.12099061,87.71,87.658,8.36265017]
[1773581820756,10.258,87.707,87.66,8.41592341]
[1773581820955,3.12099061,87.72,87.661,8.41592341]
[1773581821753,10.257,87.716,87.663,8.41613127]
[1773581821964,3.12099061,87.72,87.663,8.41613127]
[1773581822159,35.88,87.724,87.622,20.537]
[1773581822160,35.88,87.724,87.681,8.41618033]
[1773581822457,35.88,87.724,87.682,8.41618033]
[1773581822964,46.136,87.724,87.682,8.41618033]
[1773581823364,3.12099061,87.72,87.682,8.41618033]
[1773581826164,35.88,87.724,87.682,8.41618033]
[1773581826362,3.12099061,87.72,87.682,8.41618033]
[1773581829164,3.12099061,87.71,87.669,8.40248895]
[1773581829364,3.12099061,87.72,87.669,8.40248895]
[1773581830564,3.12099061,87.72,87.67,10.263]
[1773581830770,3.12099061,87.72,87.671,8.40016925]
[1773581834976,35.88,87.724,87.675,8.39869283]
[1773581836272,35.88,87.724,87.682,8.39573138]
[1773581836572,35.88,87.724,87.691,8.39573138]
[1773581839976,3.1181123,87.72,87.691,8.39573138]
[1773581842480,35.88,87.724,87.691,8.39573138]
[1773581854989,35.88,87.724,87.683,10.261]
[1773581854990,3.1181123,87.72,87.676,8.38833206]
[1773581855193,3.1181123,87.71,87.651,8.38833018]
[1773581856596,10.258,87.708,87.661,8.3834272]
[1773581857194,10.258,87.708,87.666,8.38172927]
[1773581861193,10.257,87.716,87.667,10.263]
[1773581861400,10.257,87.716,87.668,8.38020324]
[1773581862599,10.257,87.716,87.67,8.38110634]
[1773581864092,10.259,87.701,87.658,8.38265406]
[1773581864399,3.1181123,87.71,87.658,8.38265406]
[1773581865499,10.258,87.709,87.665,10.263]
[1773581865703,10.258,87.709,87.666,8.36157439]
[1773581867802,10.259,87.701,87.666,8.36157439]
[1773581868102,10.259,87.701,87.655,8.34596207]
[1773581868304,3.1181123,87.7,87.655,8.34596207]
[1773581869202,10.26,87.694,87.655,8.34596207]
[1773581870196,10.26,87.694,87.64,3.1181123]
[1773581870197,3.1181123,87.68,87.64,8.35516385]
[1773581871409,10.261,87.687,87.64,8.35516385]
[1773581876412,10.262,87.679,87.64,8.35516385]
[1773581876803,3.1181123,87.68,87.64,8.35516385]
[1773581880308,10.259,87.699,87.642,8.27897651]
[1773581880513,3.1181123,87.71,87.661,8.27897651]
[1773581881610,3.1181123,87.71,87.665,8.28313246]
[1773581882015,3.1181123,87.7,87.665,8.28313246]
[1773581884415,10.258,87.709,87.665,8.28313246]
[1773581887117,3.1181123,87.7,87.665,8.28313246]
[1773581890620,10.258,87.709,87.665,8.28313246]
[1773581890925,10.259,87.702,87.665,8.28313246]
[1773581891117,3.1181123,87.7,87.665,8.28313246]
[1773581891620,10.259,87.698,87.647,10.265]
[1773581891827,3.1181123,87.68,87.648,8.26666296]
[1773581893317,10.262,87.676,87.648,8.26666296]
[1773581893529,10.262,87.676,87.629,8.37494625]
[1773581898125,3.12243838,87.69,87.631,8.38177106]
[1773581899228,10.26,87.696,87.644,8.3864387]
[1773581899424,10.49393516,87.73,87.595,20.543]
[1773581899425,3.12243838,87.71,87.651,8.3864387]
[1773581900129,3.12243838,87.71,87.661,8.39004966]
[1773581900427,3.12243838,87.71,87.663,8.39004966]
[1773581900632,10.258,87.713,87.663,8.39004966]
[1773581900934,3.12243838,87.71,87.663,8.39004966]
[1773581901635,3.12243838,87.7,87.663,8.39004966]
[1773581901827,3.12243838,87.69,87.631,8.37165694]
[1773581903534,10.261,87.685,87.639,8.39460509]
[1773581908537,3.12243838,87.69,87.643,8.40745222]
[1773581909937,10.261,87.689,87.643,8.40745222]
[1773581910642,3.12243838,87.69,87.643,8.40745222]
[1773581910643,10.262,87.68,87.643,8.40745222]
[1773581911636,10.26,87.689,87.643,8.40745222]
[1773581916455,3.12243838,87.69,87.646,8.41115045]
[1773581916951,10.259,87.698,87.646,8.41115045]
[1773581917158,10.259,87.698,87.649,8.40989317]
[1773581917752,3.12243838,87.69,87.649,8.40989317]
[1773581920852,10.261,87.689,87.641,10.266]
[1773581921052,10.261,87.689,87.642,8.41625103]
[1773581922758,3.12243838,87.68,87.642,8.41625103]
[1773581923261,10.261,87.689,87.642,8.41625103]
[1773581923456,10.261,87.689,87.645,8.40848717]
[1773581924357,3.12243838,87.71,87.651,8.4234676]
[1773581925056,10.257,87.716,87.664,8.4696977]
[1773581926461,3.12243838,87.71,87.664,8.4696977]
[1773581926660,3.12243838,87.71,87.613,20.539]
[1773581926661,3.12243838,87.71,87.668,8.46775199]
[1773581931063,10.258,87.709,87.668,8.46775199]
[1773581931955,3.12243838,87.68,87.621,8.46390812]
[1773581932152,3.12243838,87.67,87.621,8.46390812]
[1773581932356,8.70140902,87.719,87.621,8.46390812]
[1773581932556,3.12243838,87.67,87.629,8.46410915]
[1773581933863,3.12243838,87.7,87.657,8.44480443]
[1773581934063,3.12243838,87.69,87.657,8.44480443]
[1773581934263,3.12243838,87.69,87.631,8.43962667]
[1773581935164,3.12243838,87.68,87.645,8.46463883]
[1773581936661,3.12243838,87.68,87.633,8.46175675]
[1773581937161,8.70140902,87.708,87.585,8.4591087]
[1773581937357,3.12243838,87.63,87.585,8.4591087]
[1773581937666,3.12243838,87.59,87.558,8.4591087]
[1773581937862,3.12243838,87.58,87.544,8.4591087]
[1773581938365,3.12243838,87.59,87.544,8.4591087]
[1773581938565,3.12243838,87.58,87.544,8.4591087]
[1773581940764,3.12243838,87.59,87.544,8.4591087]
[1773581941368,3.12243838,87.58,87.544,8.4591087]
[1773581943769,3.12243838,87.57,87.544,8.4591087]
[1773581944072,3.12243838,87.57,87.529,8.53051205]
[1773581944468,3.12243838,87.54,87.424,8.50068814]
[1773581944769,10.49393516,87.552,87.424,0.00068814]
[1773581944968,3.12243838,87.5,87.44,3.12243838]
[1773581945569,3.12243838,87.49,87.43,3.12243838]
[1773581945768,10.286,87.472,87.382,1.98919092]
[1773581945975,10.286,87.472,87.282,160.358]
[1773581945976,10.34933648,87.554,87.39,3.12243838]
[1773581946167,3.12243838,87.47,87.29,160.343]
[1773581946368,3.12243838,87.45,87.359,10.299]
[1773581946569,3.12243838,87.43,87.37,3.12243838]
[1773581946863,10.288,87.454,87.371,4.36509814]
[1773581947064,10.29,87.441,87.371,4.36509814]
[1773581947264,7.85047285,87.44,87.371,4.36509814]
[1773581947465,7.85047285,87.46,87.371,4.36509814]
[1773581947665,10.288,87.458,87.371,4.36509814]
[1773581947870,35.92,87.459,87.371,4.36509814]
[1773581948073,10.289,87.444,87.371,4.36509814]
[1773581948572,20.562,87.518,87.371,4.36509814]
[1773581948773,7.85047285,87.49,87.371,4.36509814]
[1773581949171,7.85047285,87.49,87.391,4.36993684]
[1773581949468,10.286,87.473,87.391,4.36993684]
[1773581949867,7.85047285,87.49,87.391,4.36993684]
[1773581950071,10.288,87.458,87.391,4.36993684]
[1773581950271,43.77047285,87.5,87.391,4.36993684]
[1773581950575,10.287,87.464,87.391,4.36993684]
[1773581950970,43.77047285,87.5,87.391,4.36993684]
[1773581951177,10.284,87.493,87.391,4.36993684]
[1773581951475,10.284,87.493,87.36,7.85047285]
[1773581951476,43.77047285,87.52,87.414,4.36753254]
[1773581951678,43.77047285,87.52,87.41,7.85047285]
[1773581951679,10.282,87.504,87.431,4.36753254]
[1773581951870,43.77047285,87.52,87.431,4.36753254]
[1773581952064,43.77047285,87.52,87.377,35.92]
[1773581952065,7.85047285,87.5,87.413,4.37294473]
[1773581952264,10.284,87.491,87.413,4.37294473]
[1773581952676,7.85047285,87.5,87.413,4.37294473]
[1773581952876,35.92,87.513,87.413,4.37294473]
[1773581953076,20.543,87.596,87.413,4.37294473]
[1773581953077,35.92,87.517,87.413,4.37294473]
[1773581953371,10.278,87.539,87.468,4.34711108]
[1773581953768,35.92,87.557,87.47,4.34711108]
[1773581954573,10.277,87.552,87.47,4.34711108]
[1773581955374,35.92,87.557,87.474,4.32997016]
[1773581956078,10.278,87.54,87.478,4.32997016]
[1773581956577,10.279,87.528,87.438,4.31396055]
[1773581956774,35.92,87.557,87.441,4.31396055]
[1773581957372,7.85047285,87.52,87.447,4.30705057]
[1773581957878,10.282,87.506,87.447,4.30705057]
[1773581958273,7.85047285,87.5,87.401,4.29834079]
[1773581958574,10.283,87.494,87.407,4.29834079]
[1773581958774,35.92,87.549,87.441,4.29834079]
[1773581958974,7.83463389,87.55,87.441,4.29834079]
[1773581958975,35.92,87.548,87.441,4.29834079]
[1773581959175,10.28,87.525,87.444,4.32758804]
[1773581959979,10.28,87.525,87.446,4.32758804]
[1773581961779,10.281,87.514,87.446,4.32758804]
[1773581964077,7.83463389,87.51,87.406,4.30354446]
[1773581964280,7.83463389,87.49,87.406,4.30354446]
[1773581964580,10.286,87.473,87.406,4.30354446]
[1773581965378,10.285,87.484,87.409,4.28458269]
[1773581965777,35.92,87.504,87.409,4.28458269]
[1773581965974,35.92,87.504,87.423,4.28458269]
[1773581966580,7.83463389,87.51,87.423,4.28458269]
[1773581967477,7.83463389,87.48,87.381,4.21408697]
[1773581968482,7.83463389,87.48,87.4,4.20096823]
[1773581968782,7.83463389,87.5,87.401,4.20096823]
[1773581969178,7.83463389,87.5,87.415,4.18648981]
[1773581969382,35.92,87.518,87.415,4.18648981]
[1773581969881,1.98957759,87.528,87.368,15.24440969]
[1773581969882,1.98957759,87.528,87.421,4.18648981]
[1773581970784,1.98957759,87.528,87.435,4.17519406]
[1773581970981,7.83463389,87.51,87.435,4.17519406]
[1773581971180,7.83463389,87.51,87.401,4.18306955]
[1773581971382,7.83463389,87.51,87.422,4.18306955]
[1773581971689,7.83463389,87.49,87.381,4.18306955]
[1773581971983,7.83463389,87.49,87.38,7.83463389]
[1773581971984,7.83463389,87.49,87.394,4.18306955]
[1773581972683,7.83463389,87.49,87.398,4.16684351]
[1773581973180,10.289,87.449,87.398,4.16684351]
[1773581975679,10.287,87.459,87.398,4.16684351]
[1773581976687,7.83463389,87.47,87.398,4.16684351]
[1773581977091,10.29,87.44,87.398,4.16684351]
[1773581978691,7.83463389,87.47,87.398,4.16684351]
[1773581980693,35.92,87.469,87.398,4.16684351]
[1773581981597,10.29,87.435,87.398,4.16684351]
[1773581982294,35.92,87.469,87.369,4.13190317]
[1773581982693,35.92,87.468,87.369,4.13190317]
[1773581982994,35.92,87.467,87.39,4.13190317]
[1773581983194,35.92,87.467,87.391,4.1318657]
[1773581983794,10.286,87.474,87.41,4.1318657]
[1773581986595,10.285,87.484,87.412,4.06670008]
[1773581986894,0.57012542,87.494,87.412,4.06670008]
[1773581987301,10.281,87.512,87.441,4.06301327]
[1773581988098,10.281,87.512,87.444,4.05126023]
[1773581988698,10.282,87.502,87.444,4.05126023]
[1773581990202,10.282,87.502,87.382,20.593]
[1773581990203,0.6552849,87.483,87.385,4.05126023]
[1773581990402,20.56,87.524,87.385,4.05126023]
[1773581990403,0.6552849,87.479,87.385,4.05126023]
[1773581990896,0.6552849,87.479,87.399,4.05126023]
[1773581991294,0.66829857,87.477,87.399,4.05126023]
[1773581991499,10.288,87.455,87.399,4.05126023]
[1773581992794,10.287,87.466,87.401,4.06701227]
[1773581993601,10.288,87.457,87.401,4.06701227]
[1773581994199,10.289,87.447,87.401,4.06701227]
[1773581994394,0.64272973,87.456,87.384,4.06701227]
[1773581994596,0.64272973,87.456,87.371,4.06701227]
[1773581994597,10.291,87.43,87.371,4.06701227]
[1773581995508,10.292,87.421,87.373,4.06701227]
[1773581995709,0.69213067,87.439,87.373,4.06701227]
[1773581996498,10.291,87.432,87.373,4.06701227]
[1773581996706,0.67002012,87.431,87.353,4.06701227]
[1773581996899,0.67002012,87.431,87.369,4.06701227]
[1773581997609,10.292,87.42,87.369,4.06701227]
[1773581998712,10.293,87.411,87.369,4.06701227]
[1773582000206,10.294,87.401,87.351,4.06701227]
[1773582000404,0.6802355,87.413,87.351,4.06701227]
[1773582001507,0.7345298,87.402,87.336,10.302]
[1773582001909,0.7345298,87.402,87.32,7.83463389]
[1773582001910,0.7345298,87.419,87.35,4.06701227]
[1773582002204,0.7345298,87.419,87.309,35.92]
[1773582002205,0.7274171,87.428,87.369,4.06701227]
[1773582002410,0.7274171,87.428,87.347,4.06701227]
[1773582002806,10.292,87.417,87.347,4.06701227]
[1773582003311,10.292,87.417,87.356,10.299]
[1773582003908,10.291,87.427,87.369,4.06701227]
[1773582005113,0.7274171,87.428,87.369,4.06701227]
[1773582005613,35.92,87.442,87.369,4.06701227]
[1773582005819,0.62913313,87.441,87.369,4.06701227]
[1773582006007,0.62913313,87.439,87.369,4.06701227]
[1773582006413,10.292,87.421,87.369,4.06701227]
[1773582007619,10.292,87.421,87.371,4.06701227]
[1773582009120,10.291,87.431,87.373,4.06701227]
[1773582009420,0.62821335,87.456,87.373,4.06701227]
[1773582009820,0.62821335,87.439,87.373,4.06701227]
[1773582010821,0.62821335,87.439,87.375,4.06701227]
[1773582010822,10.291,87.427,87.375,4.06701227]
[1773582011320,0.60190298,87.439,87.375,4.06701227]
[1773582012110,10.291,87.437,87.377,4.06701227]
[1773582013419,10.292,87.426,87.377,4.06701227]
[1773582014420,7.83463389,87.44,87.366,10.299]
[1773582014421,0.62638415,87.42,87.366,10.299]
[1773582014915,0.62638415,87.42,87.37,10.299]
[1773582015115,0.62638415,87.42,87.37,14.36601227]
[1773582015918,0.62638415,87.42,87.372,10.299]
[1773582016119,0.62638415,87.42,87.372,14.36601227]
[1773582017722,0.67324043,87.418,87.36,10.3]
[1773582017924,0.67324043,87.418,87.356,4.06701227]
[1773582018620,10.295,87.403,87.356,4.06701227]
[1773582019219,0.80330125,87.401,87.303,4.06701227]
[1773582019423,0.80330125,87.399,87.303,4.06701227]
[1773582019816,10.298,87.38,87.316,4.06701227]
[1773582020226,0.912995,87.379,87.316,4.06701227]
[1773582020419,0.912995,87.37,87.316,4.06701227]
[1773582020617,0.912995,87.389,87.316,4.06701227]
[1773582021019,0.912995,87.389,87.262,1.99240824]
[1773582021020,0.912995,87.424,87.321,4.06701227]
[1773582021325,0.912995,87.424,87.341,4.06701227]
[1773582021523,0.912995,87.424,87.351,4.06701227]
[1773582022123,0.912995,87.424,87.363,3.92005758]
[1773582023124,0.99941205,87.442,87.375,3.92005758]
[1773582024526,11.27461269,87.441,87.376,3.92005758]
[1773582025026,0.98361269,87.448,87.382,3.92005758]
[1773582026626,0.98943262,87.445,87.382,3.92005758]
[1773582027529,10.29,87.442,87.382,3.92005758]
[1773582029129,10.29,87.442,87.386,3.92005758]
[1773582030333,0.98943262,87.445,87.388,3.92005758]
[1773582031228,1.00545911,87.443,87.388,3.92005758]
[1773582032530,10.291,87.439,87.388,3.92005758]
[1773582032931,1.00624624,87.429,87.372,3.92005758]
[1773582034634,1.00624624,87.429,87.375,3.92005758]
[1773582035031,10.292,87.427,87.375,3.92005758]
[1773582035336,11.30404552,87.427,87.375,3.92005758]
[1773582036034,10.293,87.422,87.375,3.92005758]
[1773582037342,1.01839998,87.415,87.358,3.92005758]
[1773582039638,10.295,87.402,87.358,3.92005758]
[1773582041334,18.31279511,87.43,87.358,3.92005758]
[1773582041335,1.04659914,87.411,87.358,3.92005758]
[1773582041934,8.77569651,87.429,87.361,3.92005758]
[1773582042243,48.99604011,87.525,87.361,3.92005758]
[1773582042244,1.04659914,87.43,87.361,3.92005758]
[1773582042639,10.293,87.423,87.364,3.92005758]
[1773582042843,1.04660846,87.422,87.364,3.92005758]
[1773582043648,1.03950885,87.438,87.366,3.92005758]
[1773582044747,1.03950885,87.438,87.34,7.85741182]
[1773582044748,10.292,87.43,87.377,3.92005758]
[1773582044949,1.03950885,87.438,87.377,3.92005758]
[1773582045145,1.03950885,87.438,87.379,3.92005758]
[1773582046349,7.85741182,87.44,87.379,3.92005758]
[1773582046350,1.0389063,87.436,87.379,3.92005758]
[1773582046953,10.294,87.411,87.379,3.92005758]
[1773582049457,10.293,87.422,87.379,3.92005758]
[1773582049756,10.293,87.422,87.319,293.0]
[1773582049757,1.0304586,87.421,87.366,3.92005758]
[1773582050552,10.294,87.416,87.366,3.92005758]
[1773582051855,10.294,87.409,87.366,3.92005758]
[1773582053358,35.94,87.408,87.338,3.7100326]
[1773582053554,1.11716261,87.408,87.338,3.7100326]
[1773582054561,1.11716261,87.408,87.32,7.85741182]
[1773582054562,35.94,87.409,87.358,3.7100326]
[1773582055155,35.94,87.409,87.364,3.7100326]
[1773582056260,10.293,87.425,87.366,3.7100326]
[1773582056559,10.45538329,87.451,87.366,3.7100326]
[1773582056762,1.06406923,87.454,87.397,3.7100326]
[1773582056958,1.06406923,87.452,87.397,3.7100326]
[1773582057262,1.03363327,87.44,87.382,3.7100326]
[1773582058165,36.97363327,87.44,87.382,3.7100326]
[1773582058358,8.71030441,87.458,87.382,3.7100326]
[1773582058663,14.40135677,87.481,87.421,10.293]
[1773582060157,35.94,87.48,87.421,10.293]
[1773582060364,14.35115339,87.479,87.421,10.293]
[1773582061264,14.35115339,87.479,87.39,7.85741182]
[1773582061265,14.35115339,87.479,87.431,10.292]
[1773582061865,35.94,87.48,87.431,10.292]
[1773582062160,14.35094092,87.479,87.421,10.293]
[1773582063567,14.35101086,87.477,87.421,10.293]
[1773582064566,14.37220858,87.475,87.411,10.294]
[1773582065560,14.37462791,87.472,87.411,10.294]
[1773582066168,14.35771037,87.459,87.37,7.85741182]
[1773582066366,14.35771037,87.457,87.37,7.85741182]
[1773582066767,14.35771037,87.457,87.35,7.85741182]
[1773582067670,14.35776713,87.454,87.39,10.297]
[1773582068466,14.35776713,87.454,87.37,7.85741182]
[1773582068770,10.288,87.465,87.37,7.85741182]
[1773582069671,10.288,87.465,87.409,10.294]
[1773582069971,35.92,87.466,87.409,10.294]
[1773582070373,14.36975096,87.489,87.41,7.85741182]
[1773582070669,14.36975096,87.489,87.36,7.85741182]
[1773582070670,14.36975096,87.487,87.39,7.85741182]
[1773582071065,14.36975096,87.478,87.422,10.293]
[1773582072672,14.38522067,87.475,87.422,10.293]
[1773582073469,14.38513848,87.461,87.37,28.45541182]
[1773582074573,14.38513848,87.461,87.405,10.295]
[1773582077175,14.38530447,87.459,87.405,10.295]
[1773582078777,3.13848066,87.45,87.405,10.295]
[1773582080878,3.13827985,87.45,87.405,10.295]
[1773582081178,17.51227148,87.45,87.405,10.295]
[1773582083581,3.13827985,87.45,87.4,3.13827985]
[1773582083778,14.35928015,87.478,87.42,3.13827985]
[1773582083983,3.13827985,87.49,87.43,3.13827985]
[1773582084177,14.35928015,87.489,87.43,3.13827985]
[1773582085281,17.50561851,87.48,87.43,3.13827985]
[1773582085577,14.36733866,87.48,87.449,10.29]
[1773582087380,17.50561851,87.48,87.449,10.29]
[1773582087580,17.50561851,87.48,87.44,10.291]
[1773582087881,17.50564767,87.47,87.44,10.291]
[1773582088180,17.50564767,87.47,87.432,10.292]
[1773582089578,14.36736782,87.47,87.432,10.292]
[1773582090576,17.50564767,87.47,87.432,10.292]
[1773582091478,14.36736782,87.47,87.439,10.291]
[1773582095284,17.50564767,87.47,87.439,10.291]
[1773582101078,17.50564767,87.47,87.431,10.292]
[1773582104895,14.36736782,87.47,87.431,10.292]
[1773582105296,17.50564767,87.47,87.431,10.292]
[1773582106895,17.50564767,87.47,87.42,3.13827985]
[1773582106896,14.34100073,87.438,87.39,10.297]
[1773582107092,3.13827985,87.43,87.38,3.13827985]
[1773582107296,14.34100073,87.438,87.38,3.13827985]
[1773582108099,14.34100073,87.438,87.362,20.6]
[1773582108398,14.34100073,87.438,87.39,3.13827985]
[1773582108598,14.34100073,87.438,87.411,10.294]
[1773582108799,10.41095303,87.479,87.352,35.94]
[1773582108800,14.34074784,87.462,87.354,28.47904711]
[1773582108994,14.34074784,87.459,87.4,3.13827985]
[1773582109195,17.40733913,87.45,87.39,3.13827985]
[1773582110098,17.40733913,87.45,87.405,10.295]
[1773582110304,3.13827985,87.44,87.405,10.295]
[1773582111105,17.39749793,87.44,87.405,10.295]
[1773582112498,14.25921808,87.44,87.405,10.295]
[1773582116506,17.39749793,87.44,87.405,10.295]
[1773582117710,14.25921808,87.44,87.405,10.295]
[1773582120513,17.39749793,87.44,87.38,3.13827985]
[1773582121512,17.39749793,87.44,87.396,10.296]
[1773582122614,17.39749793,87.44,87.403,10.295]
[1773582123812,17.39749793,87.44,87.38,3.13827985]
[1773582123813,17.39749793,87.44,87.395,10.296]
[1773582124015,14.25600572,87.429,87.395,10.296]
[1773582125005,14.25596336,87.449,87.4,3.13827985]
[1773582126617,14.25596336,87.449,87.411,10.294]
[1773582127710,14.25596336,87.449,87.4,3.13827985]
[1773582127711,14.25596336,87.449,87.41,3.13827985]
[1773582127914,14.23983057,87.459,87.4,3.13827985]
[1773582128115,14.23983057,87.449,87.4,3.13827985]
[1773582128915,14.23983057,87.449,87.416,10.293]
[1773582132919,3.13827985,87.46,87.4,3.13827985]
[1773582133114,14.25469148,87.461,87.41,3.13827985]
[1773582133319,14.25469148,87.461,87.422,10.293]
[1773582134924,14.25329947,87.459,87.422,10.293]
[1773582135126,14.25329947,87.459,87.414,10.294]
[1773582135419,14.25329753,87.449,87.414,10.294]
[1773582137835,14.25329753,87.449,87.421,10.293]
[1773582138124,14.25254732,87.469,87.421,10.293]
[1773582139124,17.39382161,87.46,87.421,10.293]
[1773582139324,17.39382161,87.46,87.413,10.294]
[1773582139528,14.25558238,87.449,87.413,10.294]
[1773582140329,14.25558238,87.449,87.42,10.293]
[1773582140529,14.25772224,87.456,87.4,3.13827985]
[1773582140825,14.25772224,87.456,87.41,3.13827985]
[1773582141024,14.25772224,87.456,87.4,3.13827985]
[1773582142524,14.25772224,87.456,87.432,10.292]
[1773582147636,14.27534615,87.48,87.447,10.29]
[1773582147826,17.41267332,87.48,87.447,10.29]
[1773582148736,14.27534615,87.48,87.447,10.29]
[1773582149937,17.41267332,87.48,87.447,10.29]
[1773582152140,14.25816224,87.459,87.39,3.13732717]
[1773582152338,14.2581746,87.449,87.39,3.13732717]
[1773582153537,14.2581746,87.449,87.418,10.293]
[1773582155842,14.2581746,87.449,87.425,10.292]
[1773582156843,14.12479032,87.449,87.425,10.292]
[1773582160838,14.12479032,87.449,87.417,10.293]
[1773582161240,9.07202221,87.439,87.38,3.13732717]
[1773582162345,9.07202221,87.439,87.39,3.13732717]
[1773582162534,9.07202221,87.439,87.403,10.295]
[1773582163946,9.0686223,87.419,87.383,10.297]
[1773582164145,9.0686223,87.419,87.37,3.13732717]
[1773582164346,9.0686223,87.419,87.38,3.13732717]
[1773582164546,9.06499747,87.437,87.4,10.295]
[1773582164946,9.06499747,87.429,87.38,3.13732717]
[1773582166748,9.06499747,87.429,87.391,10.296]
[1773582166949,3.13732717,87.45,87.38,3.13732717]
[1773582167149,9.06626403,87.449,87.38,3.13732717]